fUSD/lending_fUSD_20250216
["ID","MTS","AMOUNT","RATE_DAILY","PERIOD"]
[353246061,1739715055014,-500.0,0.00011041,2]
[353246062,1739715055024,-500.0,0.00011041,2]
[353246063,1739715055034,-500.0,0.00011041,2]
[353246064,1739715055043,-500.0,0.00011041,2]
[353246065,1739715055053,-500.0,0.00011041,2]
[353246066,1739715055063,-500.0,0.00011041,2]
[353246067,1739715055073,-500.0,0.00011041,2]
[353246068,1739715055083,-500.0,0.00011041,2]
[353246069,1739715055093,-500.0,0.00011041,2]
[353246070,1739715055103,-500.0,0.00011041,2]
[353246071,1739715055112,-500.0,0.00011041,2]
[353246072,1739715055122,-500.0,0.00011041,2]
[353246073,1739715055132,-317.798497,0.00011041,2]
[353246074,1739715055142,-500.0,0.00011041,2]
[353246075,1739715055152,-500.0,0.00011041,2]
[353246076,1739715055162,-505.00165365,0.00011041,2]
[353246077,1739715055172,-500.0,0.00011041,2]
[353246078,1739715055181,-500.0,0.00011041,2]
[353246079,1739715055191,-1008.56,0.00011041,2]
[353246080,1739715055201,-500.0,0.00011041,2]
[353246081,1739715055210,-626.81,0.00011041,2]
[353246082,1739715055220,-500.0,0.00011041,2]
[353246083,1739715055230,-990.543172,0.00011041,2]
[353246084,1739715055240,-500.0,0.00011041,2]
[353246085,1739715055250,-554.05468152,0.00011041,2]
[353246086,1739715055260,-500.0,0.00011041,2]
[353246087,1739715055269,-1073.95,0.00011041,2]
[353246088,1739715055279,-500.0,0.00011041,2]
[353246089,1739715055289,-786.3,0.00011041,2]
[353246090,1739715055299,-500.0,0.00011041,2]
[353246091,1739715055308,-500.0,0.00011041,2]
[353246092,1739715055318,-500.0,0.00011041,2]
[353246093,1739715055327,-508.30792465,0.00011041,2]
[353246094,1739715055336,-500.0,0.00011041,2]
[353246095,1739715055346,-500.0,0.00011041,2]
[353246096,1739715055355,-500.0,0.00011041,2]
[353246097,1739715055365,-998.92,0.00011041,2]
[353246098,1739715055375,-500.0,0.00011041,2]
[353246099,1739715055384,-505.14896677,0.00011041,2]
[353246100,1739715055394,-500.0,0.00011041,2]
[353246101,1739715055406,-500.0,0.00011041,2]
[353246102,1739715055416,-386.44,0.00011041,2]
[353246103,1739715055425,-500.0,0.00011041,2]
[353246104,1739715055435,-531.25,0.00011041,2]
[353246105,1739715055446,-500.0,0.00011041,2]
[353246106,1739715055456,-510.43323492,0.00011041,2]
[353246107,1739715055466,-500.0,0.00011041,2]
[353246108,1739715055476,-718.29,0.00011041,2]
[353246109,1739715055487,-591.31,0.00011041,2]
[353246110,1739715055496,-504.91199253,0.00011041,2]
[353246111,1739715055506,-505.07806367,0.00011041,2]
[353246112,1739715055516,-500.0,0.00011041,2]
[353246113,1739715055526,-504.57485244,0.00011041,2]
[353246114,1739715055535,-500.0,0.00011041,2]
[353246115,1739715055545,-500.0,0.00011041,2]
[353246116,1739715055555,-544.1420051,0.00011041,2]
[353246117,1739715055564,-500.0,0.00011041,2]
[353246118,1739715055575,-500.0,0.00011041,2]
[353246119,1739715055585,-500.0,0.00011041,2]
[353246120,1739715055595,-504.84766792,0.00011041,2]
[353246121,1739715055606,-534.73186647,0.00011041,2]
[353246122,1739715055617,-500.0,0.00011041,2]
[353246123,1739715055627,-504.93065128,0.00011041,2]
[353246124,1739715055637,-500.0,0.00011041,2]
[353246125,1739715055647,-507.23766719,0.00011041,2]
[353246126,1739715055657,-500.0,0.00011041,2]
[353246127,1739715055666,-500.0,0.00011041,2]
[353246128,1739715055675,-500.0,0.00011041,2]
[353246129,1739715055685,-500.0,0.00011041,2]
[353246130,1739715055695,-500.0,0.00011041,2]
[353246131,1739715055706,-557.90550687,0.00011041,2]
[353246132,1739715055716,-505.90228415,0.00011041,2]
[353246133,1739715055726,-500.0,0.00011041,2]
[353246134,1739715055736,-500.0,0.00011041,2]
[353246135,1739715055746,-500.0,0.00011041,2]
[353246136,1739715055755,-500.0,0.00011041,2]
[353246137,1739715055765,-500.0,0.00011041,2]
[353246138,1739715055775,-742.48,0.00011041,2]
[353246139,1739715055785,-506.13326762,0.00011041,2]
[353246140,1739715055795,-999.19861,0.00011041,2]
[353246141,1739715055804,-500.0,0.00011041,2]
[353246142,1739715055815,-537.45215985,0.00011041,2]
[353246143,1739715055824,-500.0,0.00011041,2]
[353246144,1739715055834,-500.0,0.00011041,2]
[353246145,1739715055844,-500.0,0.00011041,2]
[353246146,1739715055854,-599.64,0.00011041,2]
[353246147,1739715055863,-506.86270644,0.00011041,2]
[353246148,1739715055872,-500.0,0.00011041,2]
[353246149,1739715055883,-504.15082746,0.00011041,2]
[353246150,1739715055893,-500.0,0.00011041,2]
[353246151,1739715055902,-500.0,0.00011041,2]
[353246152,1739715055912,-500.0,0.00011041,2]
[353246153,1739715055922,-504.83603899,0.00011041,2]
[353246154,1739715055931,-503.96682138,0.00011041,2]
[353246155,1739715055941,-662.93,0.00011041,2]
[353246156,1739715055951,-500.0,0.00011041,2]
[353246157,1739715055960,-500.0,0.00011041,2]
[353246158,1739715055970,-500.0,0.00011041,2]
[353246159,1739715055980,-764.57,0.00011041,2]
[353246160,1739715055989,-510.10600003,0.00011041,2]
[353246161,1739715055999,-500.0,0.00011041,2]
[353246162,1739715056009,-510.76558993,0.00011041,2]
[353246163,1739715056019,-507.98030279,0.00011041,2]
[353246164,1739715056028,-859.44,0.00011041,2]
[353246165,1739715056038,-507.21428767,0.00011041,2]
[353246166,1739715056048,-500.0,0.00011041,2]
[353246167,1739715056058,-500.0,0.00011041,2]
[353246168,1739715056068,-500.0,0.00011041,2]
[353246169,1739715056077,-500.0,0.00011041,2]
[353246170,1739715056086,-328.07519553,0.00011041,2]
[353246171,1739715056096,-268.66871402,0.00011041,2]
[353246172,1739715056106,-500.0,0.00011041,2]
[353246173,1739715056116,-500.0,0.00011041,2]
[353246174,1739715056125,-500.0,0.00011041,2]
[353246175,1739715056135,-500.0,0.00011041,2]
[353246176,1739715056144,-500.0,0.00011041,2]
[353246177,1739715056153,-500.0,0.00011041,2]
[353246178,1739715056162,-505.53613587,0.00011041,2]
[353246179,1739715056172,-500.0,0.00011041,2]
[353246180,1739715056181,-500.0,0.00011041,2]
[353246181,1739715056191,-563.04,0.00011041,2]
[353246182,1739715056201,-500.0,0.00011041,2]
[353246183,1739715056210,-500.0,0.00011041,2]
[353246184,1739715056219,-500.0,0.00011041,2]
[353246185,1739715056228,-500.0,0.00011041,2]
[353246186,1739715056237,-500.0,0.00011041,2]
[353246187,1739715056247,-500.0,0.00011041,2]
[353246188,1739715056256,-151.0,0.00011041,2]
[353246189,1739715056265,-500.0,0.00011041,2]
[353246190,1739715056274,-500.0,0.00011041,2]
[353246191,1739715056283,-500.0,0.00011041,2]
[353246192,1739715056293,-500.0,0.00011041,2]
[353246193,1739715056303,-500.0,0.00011041,2]
[353246194,1739715056312,-822.81,0.00011041,2]
[353246195,1739715056321,-500.0,0.00011041,2]
[353246196,1739715056330,-500.0,0.00011041,2]
[353246197,1739715056341,-500.0,0.00011041,2]
[353246198,1739715056350,-500.0,0.00011041,2]
[353246199,1739715056503,-500.0,0.00011041,2]
[353246200,1739715056513,-500.0,0.00011041,2]
[353246201,1739715056523,-500.0,0.00011041,2]
[353246202,1739715056532,-502.5065292,0.00011041,2]
[353246203,1739715056542,-500.0,0.00011041,2]
[353246204,1739715056551,-682.83,0.00011041,2]
[353246205,1739715056561,-840.79,0.00011041,2]
[353246206,1739715056570,-503.42773365,0.00011041,2]
[353246207,1739715056579,-845.5,0.00011041,2]
[353246208,1739715056589,-500.0,0.00011041,2]
[353246209,1739715056598,-500.0,0.00011041,2]
[353246210,1739715056608,-500.0,0.00011041,2]
[353246211,1739715056617,-500.0,0.00011041,2]
[353246212,1739715056627,-500.0,0.00011041,2]
[353246213,1739715056637,-500.0,0.00011041,2]
[353246214,1739715056646,-571.8208771,0.00011041,2]
[353246215,1739715056655,-500.0,0.00011041,2]
[353246216,1739715056665,-500.0,0.00011041,2]
[353246217,1739715056675,-500.0,0.00011041,2]
[353246218,1739715056684,-500.0,0.00011041,2]
[353246219,1739715056694,-500.0,0.00011041,2]
[353246220,1739715056705,-500.0,0.00011041,2]
[353246221,1739715056715,-500.0,0.00011041,2]
[353246222,1739715056724,-687.94,0.00011041,2]
[353246223,1739715056734,-500.0,0.00011041,2]
[353246224,1739715056744,-804.85,0.00011041,2]
[353246225,1739715056753,-500.0,0.00011041,2]
[353246226,1739715056763,-500.0,0.00011041,2]
[353246227,1739715056773,-500.0,0.00011041,2]
[353246228,1739715056782,-504.35032319,0.00011041,2]
[353246229,1739715056791,-595.85330043,0.00011041,2]
[353246230,1739715056801,-500.0,0.00011041,2]
[353246231,1739715056810,-509.10721965,0.00011041,2]
[353246232,1739715056820,-500.0,0.00011041,2]
[353246233,1739715056830,-500.0,0.00011041,2]
[353246234,1739715056840,-500.0,0.00011041,2]
[353246235,1739715056849,-500.0,0.00011041,2]
[353246236,1739715056859,-500.0,0.00011041,2]
[353246237,1739715056869,-500.0,0.00011041,2]
[353246238,1739715056879,-500.0,0.00011041,2]
[353246239,1739715056889,-500.0,0.00011041,2]
[353246240,1739715056898,-505.02106408,0.00011041,2]
[353246241,1739715056908,-501.17676525,0.00011041,2]
[353246242,1739715056917,-500.0,0.00011041,2]
[353246243,1739715056927,-500.0,0.00011041,2]
[353246244,1739715056937,-500.0,0.00011041,2]
[353246245,1739715056946,-500.0,0.00011041,2]
[353246246,1739715056957,-501.87272369,0.00011041,2]
[353246247,1739715056966,-500.0,0.00011041,2]
[353246248,1739715056976,-500.0,0.00011041,2]
[353246249,1739715056985,-500.0,0.00011041,2]
[353246250,1739715056995,-521.02479341,0.00011041,2]
[353246251,1739715057004,-500.0,0.00011041,2]
[353246252,1739715057013,-500.0,0.00011041,2]
[353246253,1739715057023,-500.0,0.00011041,2]
[353246254,1739715057032,-500.0,0.00011041,2]
[353246255,1739715057041,-331.29326662,0.00011041,2]
[353246256,1739715057050,-511.49066473,0.00011041,2]
[353246257,1739715057059,-500.0,0.00011041,2]
[353246258,1739715057068,-1689.28,0.00011041,2]
[353246259,1739715057077,-500.0,0.00011041,2]
[353246260,1739715057087,-500.0,0.00011041,2]
[353246261,1739715057095,-565.18,0.00011041,2]
[353246262,1739715057104,-500.0,0.00011041,2]
[353246263,1739715057114,-502.63197481,0.00011041,2]
[353246264,1739715057122,-500.0,0.00011041,2]
[353246265,1739715057131,-500.0,0.00011041,2]
[353246266,1739715057140,-501.74676629,0.00011041,2]
[353246267,1739715057152,-500.0,0.00011041,2]
[353246268,1739715057163,-502.38776287,0.00011041,2]
[353246269,1739715057172,-728.92,0.00011041,2]
[353246270,1739715057181,-501.4210288,0.00011041,2]
[353246271,1739715057191,-500.0,0.00011041,2]
[353246272,1739715057201,-500.0,0.00011041,2]
[353246273,1739715057210,-815.99,0.00011041,2]
[353246274,1739715057219,-506.77308752,0.00011041,2]
[353246275,1739715057229,-500.0,0.00011041,2]
[353246276,1739715057238,-500.0,0.00011041,2]
[353246277,1739715057247,-500.0,0.00011041,2]
[353246278,1739715057256,-500.0,0.00011041,2]
[353246279,1739715057265,-500.0,0.00011041,2]
[353246280,1739715057274,-359.09139841,0.00011041,2]
[353246281,1739715057283,-500.0,0.00011041,2]
[353246282,1739715057293,-500.0,0.00011041,2]
[353246283,1739715057302,-500.0,0.00011041,2]
[353246284,1739715057311,-500.0,0.00011041,2]
[353246285,1739715057320,-500.0,0.00011041,2]
[353246286,1739715057330,-500.0,0.00011041,2]
[353246287,1739715057339,-502.28658878,0.00011041,2]
[353246288,1739715057348,-500.0,0.00011041,2]
[353246289,1739715057358,-500.0,0.00011041,2]
[353246290,1739715057367,-500.0,0.00011041,2]
[353246291,1739715057377,-500.0,0.00011041,2]
[353246292,1739715057387,-513.44915879,0.00011041,2]
[353246293,1739715057398,-500.0,0.00011041,2]
[353246294,1739715057408,-500.0,0.00011041,2]
[353246295,1739715057422,-500.0,0.00011041,2]
[353246296,1739715057432,-500.0,0.00011041,2]
[353246297,1739715057443,-521.46640478,0.00011041,2]
[353246298,1739715057453,-500.0,0.00011041,2]
[353246299,1739715057463,-500.0,0.00011041,2]
[353246300,1739715057472,-500.0,0.00011041,2]
[353246301,1739715057481,-500.0,0.00011041,2]
[353246302,1739715057491,-500.0,0.00011041,2]
[353246303,1739715057501,-500.0,0.00011041,2]
[353246304,1739715057511,-500.0,0.00011041,2]
[353246305,1739715057520,-502.78612818,0.00011041,2]
[353246306,1739715057529,-500.0,0.00011041,2]
[353246307,1739715057538,-500.0,0.00011041,2]
[353246308,1739715057547,-801.5,0.00011041,2]
[353246309,1739715057556,-500.0,0.00011041,2]
[353246310,1739715057566,-500.0,0.00011041,2]
[353246311,1739715057575,-500.0,0.00011041,2]
[353246312,1739715057584,-500.0,0.00011041,2]
[353246313,1739715057593,-500.0,0.00011041,2]
[353246314,1739715057602,-500.0,0.00011041,2]
[353246315,1739715057611,-502.7743358,0.00011041,2]
[353246316,1739715057620,-500.0,0.00011041,2]
[353246317,1739715057629,-1255.83,0.00011041,2]
[353246318,1739715057638,-500.0,0.00011041,2]
[353246319,1739715057649,-500.0,0.00011041,2]
[353246320,1739715057658,-500.0,0.00011041,2]
[353246321,1739715057667,-342.22502185,0.00011041,2]
[353246322,1739715057676,-500.0,0.00011041,2]
[353246323,1739715057686,-500.0,0.00011041,2]
[353246324,1739715057697,-500.0,0.00011041,2]
[353246325,1739715057708,-500.0,0.00011041,2]
[353246326,1739715057717,-500.0,0.00011041,2]
[353246327,1739715057727,-683.35,0.00011041,2]
[353246328,1739715057737,-500.0,0.00011041,2]
[353246329,1739715057747,-500.0,0.00011041,2]
[353246330,1739715057756,-776.04,0.00011041,2]
[353246331,1739715057766,-536.76,0.00011041,2]
[353246332,1739715057775,-674.54,0.00011041,2]
[353246333,1739715057784,-500.0,0.00011041,2]
[353246334,1739715057794,-500.0,0.00011041,2]
[353246335,1739715057803,-500.0,0.00011041,2]
[353246336,1739715057813,-505.07140652,0.00011041,2]
[353246337,1739715057822,-1260.16,0.00011041,2]
[353246338,1739715057832,-500.0,0.00011041,2]
[353246339,1739715057842,-500.0,0.00011041,2]
[353246340,1739715057852,-500.0,0.00011041,2]
[353246341,1739715057865,-224.2000731,0.00011041,2]
[353246342,1739715057874,-500.0,0.00011041,2]
[353246343,1739715057883,-500.0,0.00011041,2]
[353246344,1739715057892,-500.0,0.00011041,2]
[353246345,1739715057901,-555.83031614,0.00011041,2]
[353246346,1739715057910,-500.0,0.00011041,2]
[353246347,1739715057919,-500.0,0.00011041,2]
[353246348,1739715057928,-500.0,0.00011041,2]
[353246349,1739715057937,-500.0,0.00011041,2]
[353246350,1739715057946,-500.0,0.00011041,2]
[353246351,1739715057956,-507.83858483,0.00011041,2]
[353246352,1739715057966,-498.92296164,0.00011041,2]
[353246353,1739715057977,-500.0,0.00011041,2]
[353246354,1739715057988,-1494.67,0.00011041,2]
[353246355,1739715057998,-500.0,0.00011041,2]
[353246356,1739715058007,-500.0,0.00011041,2]
[353246357,1739715058016,-565.35,0.00011041,2]
[353246358,1739715058025,-500.0,0.00011041,2]
[353246359,1739715058034,-500.0,0.00011041,2]
[353246360,1739715058043,-501.30376202,0.00011041,2]
[353246361,1739715058052,-676.96,0.00011041,2]
[353246362,1739715058062,-500.0,0.00011041,2]
[353246363,1739715058071,-500.0,0.00011041,2]
[353246364,1739715058080,-500.0,0.00011041,2]
[353246365,1739715058089,-503.24605453,0.00011041,2]
[353246366,1739715058099,-500.0,0.00011041,2]
[353246367,1739715058108,-500.0,0.00011041,2]
[353246368,1739715058117,-1049.51,0.00011041,2]
[353246369,1739715058126,-500.0,0.00011041,2]
[353246370,1739715058135,-500.0,0.00011041,2]
[353246371,1739715058145,-500.0,0.00011041,2]
[353246372,1739715058154,-518.85,0.00011041,2]
[353246373,1739715058163,-500.0,0.00011041,2]
[353246374,1739715058174,-500.0,0.00011041,2]
[353246375,1739715058183,-500.0,0.00011041,2]
[353246376,1739715058192,-500.0,0.00011041,2]
[353246377,1739715058202,-500.0,0.00011041,2]
[353246378,1739715058211,-500.0,0.00011041,2]
[353246379,1739715058220,-500.0,0.00011041,2]
[353246380,1739715058229,-1257.34,0.00011041,2]
[353246381,1739715058238,-500.0,0.00011041,2]
[353246382,1739715058247,-536.21,0.00011041,2]
[353246383,1739715058256,-500.0,0.00011041,2]
[353246384,1739715058265,-500.0,0.00011041,2]
[353246385,1739715058273,-500.0,0.00011041,2]
[353246386,1739715058282,-500.0,0.00011041,2]
[353246387,1739715058291,-500.0,0.00011041,2]
[353246388,1739715058300,-749.39,0.00011041,2]
[353246389,1739715058309,-500.0,0.00011041,2]
[353246390,1739715058318,-500.0,0.00011041,2]
[353246391,1739715058328,-500.0,0.00011041,2]
[353246392,1739715058434,-500.0,0.00011041,2]
[353246393,1739715058455,-500.0,0.00011041,2]
[353246394,1739715058464,-500.0,0.00011041,2]
[353246395,1739715058473,-593.79,0.00011041,2]
[353246396,1739715058483,-500.0,0.00011041,2]
[353246397,1739715058496,-500.0,0.00011041,2]
[353246398,1739715058505,-500.0,0.00011041,2]
[353246399,1739715058514,-563.21,0.00011041,2]
[353246400,1739715058523,-500.0,0.00011041,2]
[353246401,1739715058532,-500.0,0.00011041,2]
[353246402,1739715058541,-500.0,0.00011041,2]
[353246403,1739715058551,-809.52,0.00011041,2]
[353246404,1739715058559,-500.0,0.00011041,2]
[353246405,1739715058568,-500.0,0.00011041,2]
[353246406,1739715058577,-500.0,0.00011041,2]
[353246407,1739715058586,-500.0,0.00011041,2]
[353246408,1739715058596,-500.0,0.00011041,2]
[353246409,1739715058605,-500.0,0.00011041,2]
[353246410,1739715058614,-500.0,0.00011041,2]
[353246411,1739715058623,-500.0,0.00011041,2]
[353246412,1739715058632,-500.0,0.00011041,2]
[353246413,1739715058641,-500.0,0.00011041,2]
[353246414,1739715058650,-500.0,0.00011041,2]
[353246415,1739715058659,-500.0,0.00011041,2]
[353246416,1739715058669,-500.0,0.00011041,2]
[353246417,1739715058678,-500.0,0.00011041,2]
[353246418,1739715058687,-500.0,0.00011041,2]
[353246419,1739715058697,-733.24,0.00011041,2]
[353246420,1739715058707,-518.69485605,0.00011041,2]
[353246421,1739715058716,-543.72,0.00011041,2]
[353246422,1739715058725,-500.0,0.00011041,2]
[353246423,1739715058734,-500.0,0.00011041,2]
[353246424,1739715058743,-500.0,0.00011041,2]
[353246425,1739715058752,-500.0,0.00011041,2]
[353246426,1739715058761,-500.0,0.00011041,2]
[353246427,1739715058771,-375.68884434,0.00011041,2]
[353246428,1739715058780,-517.01124189,0.00011041,2]
[353246429,1739715058790,-563.33,0.00011041,2]
[353246430,1739715058799,-500.0,0.00011041,2]
[353246431,1739715058809,-500.0,0.00011041,2]
[353246432,1739715058818,-502.54528306,0.00011041,2]
[353246433,1739715058828,-500.0,0.00011041,2]
[353246434,1739715058838,-500.0,0.00011041,2]
[353246435,1739715058847,-759.09,0.00011041,2]
[353246436,1739715058856,-500.0,0.00011041,2]
[353246437,1739715058864,-512.9149809,0.00011041,2]
[353246438,1739715058873,-500.0,0.00011041,2]
[353246439,1739715058883,-500.0,0.00011041,2]
[353246440,1739715058892,-500.0,0.00011041,2]
[353246441,1739715058901,-500.0,0.00011041,2]
[353246442,1739715058910,-806.21,0.00011041,2]
[353246443,1739715058920,-559.91,0.00011041,2]
[353246444,1739715058929,-500.0,0.00011041,2]
[353246445,1739715058938,-500.0,0.00011041,2]
[353246446,1739715058946,-500.0,0.00011041,2]
[353246447,1739715058956,-500.0,0.00011041,2]
[353246448,1739715058965,-507.51627905,0.00011041,2]
[353246449,1739715058974,-784.93,0.00011041,2]
[353246450,1739715058983,-509.03933663,0.00011041,2]
[353246451,1739715058992,-500.0,0.00011041,2]
[353246452,1739715059001,-500.0,0.00011041,2]
[353246453,1739715059010,-740.59,0.00011041,2]
[353246454,1739715059019,-587.36,0.00011041,2]
[353246455,1739715059028,-561.67,0.00011041,2]
[353246456,1739715059038,-500.0,0.00011041,2]
[353246457,1739715059047,-292.86027112,0.00011041,2]
[353246458,1739715059056,-500.0,0.00011041,2]
[353246459,1739715059066,-500.0,0.00011041,2]
[353246460,1739715059075,-468.38601235,0.00011041,2]
[353246461,1739715059084,-500.0,0.00011041,2]
[353246462,1739715059093,-500.0,0.00011041,2]
[353246463,1739715059102,-500.0,0.00011041,2]
[353246464,1739715059111,-500.0,0.00011041,2]
[353246465,1739715059120,-681.58,0.00011041,2]
[353246466,1739715059129,-504.31537203,0.00011041,2]
[353246467,1739715059138,-500.0,0.00011041,2]
[353246468,1739715059147,-500.0,0.00011041,2]
[353246469,1739715059156,-500.0,0.00011041,2]
[353246470,1739715059166,-824.55,0.00011041,2]
[353246471,1739715059175,-758.66,0.00011041,2]
[353246472,1739715059184,-540.21,0.00011041,2]
[353246473,1739715059193,-506.30990886,0.00011041,2]
[353246474,1739715059202,-500.0,0.00011041,2]
[353246475,1739715059211,-951.56,0.00011041,2]
[353246476,1739715059220,-830.8,0.00011041,2]
[353246477,1739715059229,-504.80764835,0.00011041,2]
[353246478,1739715059238,-500.0,0.00011041,2]
[353246479,1739715059247,-500.0,0.00011041,2]
[353246480,1739715059256,-737.81,0.00011041,2]
[353246481,1739715059266,-500.0,0.00011041,2]
[353246482,1739715059275,-500.0,0.00011041,2]
[353246483,1739715059284,-500.0,0.00011041,2]
[353246484,1739715059293,-1159.06,0.00011041,2]
[353246485,1739715059302,-500.0,0.00011041,2]
[353246486,1739715059311,-500.0,0.00011041,2]
[353246487,1739715059320,-500.0,0.00011041,2]
[353246488,1739715059329,-500.0,0.00011041,2]
[353246489,1739715059338,-500.0,0.00011041,2]
[353246490,1739715059348,-3660.94,0.00011041,2]
[353246491,1739715059357,-507.26460887,0.00011041,2]
[353246492,1739715059366,-500.0,0.00011041,2]
[353246493,1739715059376,-500.0,0.00011041,2]
[353246494,1739715059385,-500.0,0.00011041,2]
[353246495,1739715059393,-500.0,0.00011041,2]
[353246496,1739715059403,-958.21,0.00011041,2]
[353246497,1739715059413,-500.0,0.00011041,2]
[353246498,1739715059425,-500.0,0.00011041,2]
[353246499,1739715059434,-500.0,0.00011041,2]
[353246500,1739715059443,-1060.48,0.00011041,2]
[353246501,1739715059455,-579.22,0.00011041,2]
[353246502,1739715059463,-1730.93,0.00011041,2]
[353246503,1739715059473,-500.0,0.00011041,2]
[353246504,1739715059481,-722.92,0.00011041,2]
[353246505,1739715059491,-786.46,0.00011041,2]
[353246506,1739715059501,-500.0,0.00011041,2]
[353246507,1739715059510,-1270.84,0.00011041,2]
[353246508,1739715059519,-804.45,0.00011041,2]
[353246509,1739715059528,-500.0,0.00011041,2]
[353246510,1739715059537,-878.61,0.00011041,2]
[353246511,1739715059546,-508.78980059,0.00011041,2]
[353246512,1739715059555,-500.0,0.00011041,2]
[353246513,1739715059564,-1391.28,0.00011041,2]
[353246514,1739715059574,-500.0,0.00011041,2]
[353246515,1739715059583,-500.0,0.00011041,2]
[353246516,1739715059592,-500.0,0.00011041,2]
[353246517,1739715059601,-500.0,0.00011041,2]
[353246518,1739715059610,-251.79034479,0.00011041,2]
[353246519,1739715059619,-500.0,0.00011041,2]
[353246520,1739715059628,-500.0,0.00011041,2]
[353246521,1739715059637,-807.08,0.00011041,2]
[353246522,1739715059647,-500.0,0.00011041,2]
[353246523,1739715059656,-652.19,0.00011041,2]
[353246524,1739715059665,-1342.55,0.00011041,2]
[353246525,1739715059674,-1331.21,0.00011041,2]
[353246526,1739715059683,-500.0,0.00011041,2]
[353246527,1739715059692,-1435.31,0.00011041,2]
[353246528,1739715059701,-499.73576259,0.00011041,2]
[353246529,1739715059711,-500.0,0.00011041,2]
[353246530,1739715059720,-2872.91,0.00011041,2]
[353246531,1739715059729,-1185.6,0.00011041,2]
[353246532,1739715059738,-500.0,0.00011041,2]
[353246533,1739715059747,-500.0,0.00011041,2]
[353246534,1739715059756,-500.0,0.00011041,2]
[353246535,1739715059765,-500.0,0.00011041,2]
[353246536,1739715059774,-500.0,0.00011041,2]
[353246537,1739715059783,-500.0,0.00011041,2]
[353246538,1739715059793,-500.0,0.00011041,2]
[353246539,1739715059802,-500.0,0.00011041,2]
[353246540,1739715059811,-880.05,0.00011041,2]
[353246541,1739715059820,-1065.5,0.00011041,2]
[353246542,1739715059830,-2343.11,0.00011041,2]
[353246543,1739715059839,-500.0,0.00011041,2]
[353246544,1739715059848,-500.0,0.00011041,2]
[353246545,1739715059857,-1602.94,0.00011041,2]
[353246546,1739715059866,-500.0,0.00011041,2]
[353246547,1739715059874,-1665.81,0.00011041,2]
[353246548,1739715059883,-209.16688501,0.00011041,2]
[353246549,1739715059892,-767.8,0.00011041,2]
[353246550,1739715059902,-896.78,0.00011041,2]
[353246551,1739715059911,-557.07,0.00011041,2]
[353246552,1739715059923,-1549.56,0.00011041,2]
[353246553,1739715059932,-503.02388427,0.00011041,2]
[353246554,1739715059942,-2011.15,0.00011041,2]
[353246555,1739715059951,-502.15374585,0.00011041,2]
[353246556,1739715059961,-500.0,0.00011041,2]
[353246557,1739715059970,-921.0,0.00011041,2]
[353246558,1739715059979,-503.38418753,0.00011041,2]
[353246559,1739715059989,-780.05,0.00011041,2]
[353246560,1739715059998,-2015.93,0.00011041,2]